bitfinex-derivatives/quotes_ETHF0:USTF0_20250116
["timestamp","ask_amount","ask_price","bid_price","bid_amount"]
[1737011163077,0.4852,3384.0,3383.9,0.59112]
[1737011163483,3.6649,3384.1,3384.0,0.5911]
[1737011164877,0.4571,3384.1,3384.0,0.5911]
[1737011167478,2.32296052,3384.2,3384.1,0.59108]
[1737011170287,2.32296052,3384.2,3384.0,1.05799]
[1737011170793,2.32296052,3384.2,3384.1,0.59108]
[1737011171085,2.32296052,3384.2,3384.0,0.4669]
[1737011171290,2.32296052,3384.2,3384.1,0.59108]
[1737011171484,2.32296052,3384.2,3384.0,1.05799]
[1737011172085,2.32296052,3384.2,3384.0,0.4669]
[1737011172285,0.4891,3384.1,3384.0,0.4669]
[1737011172487,0.4891,3384.1,3383.7,5.22223286]
[1737011172688,0.4485,3384.0,3383.8,0.4876]
[1737011172887,0.4524,3383.9,3383.8,0.4876]
[1737011173190,2.77536052,3383.9,3383.8,0.4876]
[1737011173379,3.36649052,3383.9,3383.5,5.70206286]
[1737011173580,2.32296052,3383.6,3383.5,5.11088286]
[1737011173789,2.32296052,3383.6,3383.5,4.63108286]
[1737011174090,2.91413052,3383.6,3383.5,4.63108286]
[1737011174390,0.59119,3383.5,3383.4,5.11868286]
[1737011174601,0.4585,3383.5,3383.4,5.11868286]
[1737011175296,0.4585,3383.5,3383.4,0.4876]
[1737011175487,1.04969,3383.5,3383.4,0.4876]
[1737011175687,0.4585,3383.5,3383.4,0.4876]
[1737011176085,1.04969,3383.5,3383.4,0.4876]
[1737011176391,1.04969,3383.5,3383.2,4.63108286]
[1737011176592,2.32296052,3383.3,3383.2,4.63108286]
[1737011176796,2.32296052,3383.3,3383.1,0.4562]
[1737011176990,2.32296052,3383.3,3383.1,1.04745]
[1737011178087,2.32296052,3383.3,3383.1,0.4562]
[1737011178290,3.79894,3383.8,3383.4,0.5912]
[1737011178592,2.91405052,3384.1,3383.5,0.4461]
[1737011178899,2.32296052,3384.1,3383.7,0.59115]
[1737011179292,2.32296052,3384.1,3383.6,41.2697]
[1737011179490,2.91406052,3384.1,3383.6,41.86086]
[1737011179888,2.32296052,3384.1,3383.8,0.59112]
[1737011180899,2.32296052,3384.1,3383.7,0.59115]
[1737011182500,2.91405052,3384.1,3383.6,41.86086]
[1737011182695,2.32296052,3384.1,3383.6,41.2697]
[1737011182892,2.32296052,3384.1,3383.7,0.59115]
[1737011183093,2.32296052,3384.1,3383.6,41.2697]
[1737011183394,2.91405052,3384.1,3383.6,41.86086]
[1737011183599,0.5911,3384.0,3383.6,41.86086]
[1737011184395,3.2078,3384.5,3384.2,0.59105]
[1737011184594,3.2078,3384.5,3384.3,0.9295]
[1737011185803,0.9596,3384.7,3384.4,0.59103]
[1737011185998,0.9596,3384.7,3384.4,1.06383]
[1737011186803,2.32296052,3384.5,3384.3,0.9295]
[1737011189999,2.91398052,3384.5,3384.3,0.9295]
[1737011190299,2.32296052,3384.5,3384.3,0.9295]
[1737011190905,2.91398052,3384.5,3384.3,0.9295]
[1737011191403,2.32296052,3384.5,3384.3,0.9295]
[1737011191603,2.91397052,3384.5,3384.3,0.9295]
[1737011191999,0.59103,3384.4,3384.3,0.4517]
[1737011196214,3.79883,3384.4,3384.3,0.4517]
[1737011196405,3.2078,3384.4,3384.3,0.4517]
[1737011197508,3.79883,3384.4,3384.3,0.4517]
[1737011198313,3.2078,3384.4,3384.3,0.4517]
[1737011199910,3.79883,3384.4,3384.3,0.4517]
[1737011203117,3.2078,3384.4,3384.3,0.4517]
[1737011203517,3.79883,3384.4,3384.3,0.4517]
[1737011204115,3.2078,3384.4,3384.3,0.4517]
[1737011204310,2.32296052,3384.5,3384.3,0.4517]
[1737011205015,2.91398052,3384.5,3384.3,0.4517]
[1737011205211,0.59103,3384.4,3384.3,0.4517]
[1737011208016,2.32296052,3384.5,3384.3,0.4517]
[1737011208219,2.91399052,3384.5,3384.3,0.4517]
[1737011208618,2.91398052,3384.5,3384.3,0.4517]
[1737011208920,2.32296052,3384.5,3384.3,0.4517]
[1737011209117,5.53076052,3384.8,3384.3,0.4517]
[1737011209320,3.2078,3384.8,3384.5,0.591]
[1737011209524,3.2078,3384.8,3384.6,0.59099]
[1737011209716,3.2078,3384.8,3384.5,0.591]
[1737011209918,3.2078,3384.8,3384.4,1.52392]
[1737011211617,0.59095,3384.9,3384.4,1.52392]
[1737011211823,3.2078,3385.0,3384.4,1.52392]
[1737011212032,0.59096,3384.8,3384.4,1.52392]
[1737011212925,0.59099,3384.7,3384.4,0.9329]
[1737011213424,0.591,3384.6,3384.4,0.4614]
[1737011213622,0.9374,3384.6,3384.4,0.4614]
[1737011213823,2.91397052,3384.5,3384.4,0.4614]
[1737011214217,0.59103,3384.4,3384.3,0.4517]
[1737011216022,2.32296052,3384.5,3384.3,0.4517]
[1737011216222,2.91398052,3384.5,3384.3,0.4517]
[1737011217519,2.32296052,3384.5,3384.3,0.4517]
[1737011217727,2.91398052,3384.5,3384.3,0.4517]
[1737011220325,3.2078,3384.6,3384.4,0.59102]
[1737011220529,3.2078,3384.6,3384.4,1.06182]
[1737011221034,3.2078,3384.6,3384.4,0.4708]
[1737011221424,3.79881,3384.6,3384.4,0.4708]
[1737011221634,4.28181,3384.6,3384.4,0.4708]
[1737011221826,3.6908,3384.6,3384.4,0.4708]
[1737011222027,3.2078,3384.6,3384.4,1.06182]
[1737011222228,3.2078,3384.6,3384.5,0.59101]
[1737011222624,3.2078,3384.6,3384.4,1.06182]
[1737011223632,2.32296052,3384.6,3384.4,0.4708]
[1737011223832,2.32296052,3384.6,3384.3,0.4517]
[1737011223833,2.79176052,3384.6,3384.3,0.4517]
[1737011224430,0.59102,3384.5,3384.3,0.4517]
[1737011224631,2.79176052,3384.6,3383.9,0.4815]
[1737011224934,2.32296052,3384.2,3384.1,1.05188]
[1737011225233,2.32296052,3384.2,3384.1,0.4608]
[1737011225627,1.47686,3386.1,3384.1,8.94676052]
[1737011225931,0.4581,3385.0,3384.4,3.2078]
[1737011226131,0.4581,3385.0,3384.5,40.8]
[1737011226332,0.4581,3385.0,3384.8,0.59095]
[1737011226534,0.4581,3385.0,3384.7,0.59097]
[1737011227043,0.4581,3385.0,3384.6,0.4781]
[1737011227044,2.32296052,3384.9,3384.6,0.4781]
[1737011227237,0.4442,3384.8,3384.6,0.4781]
[1737011227429,0.9135,3384.8,3384.6,0.4781]
[1737011227828,0.9135,3384.8,3384.6,1.06909]
[1737011228426,0.9135,3384.8,3384.6,0.4781]
[1737011228626,0.9135,3384.8,3384.7,0.59098]
[1737011231334,0.9135,3384.8,3384.6,0.4781]
[1737011231529,0.9135,3384.8,3384.7,0.59098]
[1737011231733,0.9135,3384.8,3384.6,1.06909]
[1737011231935,0.9135,3384.8,3384.6,0.4781]
[1737011232238,0.9135,3384.8,3384.6,1.06909]
[1737011232439,3.23646052,3384.8,3384.4,3.79882]
[1737011232843,3.82744052,3384.8,3384.3,1.06664]
[1737011233031,2.32296052,3384.5,3384.2,40.8]
[1737011233231,0.4776,3384.4,3384.2,41.39105]
[1737011233431,0.4624,3384.3,3384.2,0.59105]
[1737011233638,0.9262,3384.3,3384.2,0.59105]
[1737011234344,2.32296052,3384.5,3384.4,0.59103]
[1737011237247,0.479,3384.7,3384.4,0.59103]
[1737011237649,0.479,3384.7,3384.5,0.4571]
[1737011238935,0.479,3384.7,3384.1,40.8]
[1737011239141,0.479,3384.7,3384.3,0.59104]
[1737011239439,2.32296052,3384.5,3384.3,0.59104]
[1737011239642,2.32296052,3384.5,3384.2,0.59106]
[1737011240939,2.32296052,3384.5,3384.0,44.0078]
[1737011241145,2.32296052,3384.5,3384.2,0.59106]
[1737011242249,2.32296052,3384.5,3384.0,44.0078]
[1737011242849,2.32296052,3384.2,3384.0,40.8]
[1737011243038,0.938,3384.1,3383.8,0.4438]
[1737011243243,2.00958,3384.1,3383.7,5.22222286]
[1737011243548,2.32296052,3383.9,3383.8,40.8]
[1737011243849,1.4185,3384.1,3383.8,40.8]
[1737011244042,1.4185,3384.1,3383.8,41.39113]
[1737011244242,1.4185,3384.1,3383.8,40.8]
[1737011244547,1.4185,3384.1,3383.9,0.59111]
[1737011244948,0.938,3384.1,3383.9,0.59111]
[1737011245145,0.938,3384.1,3383.8,40.8]
[1737011245345,0.938,3384.1,3384.0,0.5911]
[1737011247149,0.938,3384.1,3383.9,0.59111]
[1737011247346,0.938,3384.1,3383.8,41.39112]
[1737011247550,0.4457,3384.0,3383.8,41.39112]
[1737011247748,0.4457,3384.0,3383.8,40.8]
[1737011248050,0.4457,3384.0,3383.8,41.39113]
[1737011249054,0.4457,3384.0,3383.8,40.8]
[1737011249352,0.4457,3384.0,3383.9,0.59112]
[1737011249554,0.4457,3384.0,3383.8,41.39113]
[1737011249751,0.4457,3384.0,3383.8,40.8]
[1737011250147,0.4457,3384.0,3383.8,41.39113]
[1737011250457,1.03681,3384.0,3383.7,0.4847]
[1737011250847,2.91408052,3383.9,3383.7,40.8]
[1737011251251,3.2078,3383.8,3383.6,4.63108286]
[1737011251456,0.59115,3383.7,3383.4,4.63108286]
[1737011251656,2.32296052,3383.6,3383.4,5.22227286]
[1737011251851,0.937,3383.5,3383.4,5.22227286]
[1737011252458,0.937,3383.5,3383.2,0.486]
[1737011252751,2.32296052,3383.3,3383.1,4.63108286]
[1737011253146,2.32296052,3383.3,3383.2,0.59124]
[1737011253550,3.2078,3383.4,3383.2,0.59124]
[1737011254653,3.2078,3383.4,3383.0,4.63108286]
[1737011254854,2.91419052,3383.3,3382.9,41.286]
[1737011255157,2.32296052,3383.3,3382.9,0.486]
[1737011255357,2.32296052,3383.3,3382.9,1.07728]
[1737011255557,2.32296052,3383.3,3382.9,1.07729]
[1737011255953,2.32296052,3383.3,3382.9,0.486]
[1737011256153,2.32296052,3383.3,3382.9,1.07728]
[1737011256358,2.32296052,3383.3,3382.9,0.59128]
[1737011257549,2.32296052,3383.3,3383.0,0.59127]
[1737011257857,2.32296052,3383.3,3382.8,0.59131]
[1737011258053,2.32296052,3383.3,3382.9,0.59128]
[1737011259457,2.32296052,3383.3,3382.7,40.8]
[1737011259653,2.32296052,3383.3,3383.0,0.59127]
[1737011260249,2.32296052,3383.3,3383.1,0.59125]
[1737011260451,2.32296052,3383.3,3382.7,44.0078]
[1737011260652,2.32296052,3383.3,3383.0,0.59127]
[1737011260862,2.32296052,3383.3,3382.7,44.0078]
[1737011261060,2.32296052,3383.3,3383.1,0.59125]
[1737011261561,2.32296052,3383.3,3383.0,0.59126]
[1737011261762,2.32296052,3383.3,3382.7,44.0078]
[1737011261961,2.32296052,3383.3,3383.0,0.59126]
[1737011262363,2.32296052,3383.3,3383.1,0.4567]
[1737011263264,2.32296052,3383.3,3383.1,1.04796]
[1737011263467,3.2078,3383.4,3383.1,0.4567]
[1737011263764,4.4018,3383.9,3383.1,3.6645]
[1737011264061,1.194,3384.1,3383.5,3.2078]
[1737011264262,0.9085,3383.8,3383.7,0.59115]
[1737011264465,0.9085,3383.8,3383.7,41.39115]
[1737011264659,0.9085,3383.8,3383.7,0.59115]
[1737011267558,0.9085,3383.8,3383.6,0.483]
[1737011267764,0.9085,3383.8,3383.6,1.07416]
[1737011267967,0.9085,3383.8,3383.7,0.59115]
[1737011268262,0.9085,3383.8,3383.6,0.483]
[1737011268468,0.9085,3383.8,3383.6,1.07416]
[1737011272477,0.9085,3383.8,3383.6,0.483]
[1737011275279,0.9085,3383.8,3383.6,1.07417]
[1737011275478,0.9085,3383.8,3383.7,0.59115]
[1737011275679,0.9085,3383.8,3383.6,1.07416]
[1737011275876,0.9085,3383.8,3383.6,0.483]
[1737011276476,0.9085,3383.8,3383.6,1.07417]
[1737011277480,0.9085,3383.8,3383.6,0.483]
[1737011277975,0.9085,3383.8,3383.7,0.59115]
[1737011278276,0.9085,3383.8,3383.6,1.07416]
[1737011278678,0.4552,3383.8,3383.7,0.59115]
[1737011284478,3.2078,3383.9,3383.7,0.59115]
[1737011285687,3.2078,3383.9,3383.6,0.483]
[1737011285982,3.2078,3383.9,3383.6,1.07416]
[1737011287781,3.2078,3383.9,3383.6,0.483]
[1737011288083,0.4813,3384.0,3383.9,0.59112]
[1737011290283,2.966,3384.2,3383.7,0.9037]
[1737011290484,3.6955,3384.3,3384.0,0.59109]
[1737011290684,3.6955,3384.3,3384.1,0.4664]
[1737011290884,3.6955,3384.3,3384.2,0.59107]
[1737011291187,3.6955,3384.3,3384.1,1.05747]
[1737011291791,3.6955,3384.3,3384.1,0.4664]
[1737011293689,3.6955,3384.3,3384.2,0.59107]
[1737011295896,0.4877,3384.3,3384.2,0.59107]
[1737011299186,0.4877,3384.3,3384.1,0.4664]
[1737011299389,0.4877,3384.3,3384.2,0.59107]
[1737011301389,1.53629606,3384.3,3384.2,0.59107]
[1737011303393,1.53629606,3384.3,3383.9,3.2078]
[1737011303598,1.04859606,3384.0,3383.9,3.79891]
[1737011307291,1.04859606,3384.0,3383.9,0.59111]
[1737011317099,0.4877,3384.3,3383.8,0.4826]
[1737011317303,1.04859606,3384.1,3383.8,0.4826]
[1737011317498,1.04859606,3384.1,3384.0,0.5911]
[1737011325007,0.4877,3384.3,3384.2,0.59107]
[1737011331817,0.4877,3384.3,3384.1,0.59107]
[1737011332007,1.04859606,3384.2,3384.1,0.59107]
[1737011332817,0.4877,3384.3,3384.1,0.59107]
[1737011333014,0.4877,3384.3,3384.2,0.59107]
[1737011335020,0.4877,3384.3,3384.0,1.53039606]
[1737011335223,0.4877,3384.3,3384.1,0.59108]
[1737011335619,0.4877,3384.3,3384.2,0.4637]
[1737011336531,0.4877,3384.3,3384.2,1.05477]
[1737011336932,0.4877,3384.3,3384.2,0.4637]
[1737011337335,0.4877,3384.3,3384.2,1.05477]
[1737011340525,0.4877,3384.3,3384.2,2.10336606]
[1737011346524,0.4877,3384.3,3384.2,1.05477]
[1737011346830,0.4877,3384.3,3384.2,2.10336606]
[1737011352338,0.4877,3384.3,3384.2,5.31116606]
[1737011354336,0.4877,3384.3,3384.2,2.10336606]
[1737011354527,0.4877,3384.3,3384.2,5.31116606]
[1737011354931,0.4877,3384.3,3384.2,4.26257]
[1737011363647,0.59097,3384.8,3384.2,3.6715]
[1737011363855,0.9119,3384.6,3384.5,0.591]
[1737011364342,0.9119,3384.6,3384.5,41.391]
[1737011365343,0.9119,3384.6,3384.5,0.591]
[1737011368554,0.4591,3384.9,3384.5,1.04859606]
[1737011368750,3.2078,3385.0,3384.9,0.59094]
[1737011369054,0.4759,3385.2,3385.1,0.59091]
[1737011371055,1.52449606,3385.2,3385.1,0.59091]
[1737011371847,1.52449606,3385.2,3385.0,1.07342]
[1737011372048,1.52449606,3385.2,3384.8,3.2078]
[1737011372244,1.04859606,3384.9,3384.8,3.2078]
[1737011373449,1.63954606,3384.9,3384.4,3.79882]
[1737011373656,1.04859606,3384.5,3384.4,3.79883]
[1737011373855,0.4472,3384.8,3384.7,0.59098]
[1737011374257,0.4472,3384.8,3384.6,0.59099]
[1737011374453,0.4685,3384.7,3384.6,0.59099]
[1737011375952,1.04859606,3385.1,3384.8,0.59095]
[1737011376258,0.4432,3385.0,3384.8,0.59095]
[1737011376647,0.4882,3384.9,3384.8,0.59095]
[1737011380359,1.53679606,3384.9,3384.8,0.59095]
[1737011381661,1.53679606,3384.9,3384.7,0.4605]
[1737011381964,1.53679606,3384.9,3384.7,1.05147]
[1737011382350,1.53679606,3384.9,3384.8,0.59096]
[1737011383151,1.53679606,3384.9,3384.7,0.4605]
[1737011383356,1.53679606,3384.9,3384.7,1.05147]
[1737011385464,1.53679606,3384.9,3384.7,0.4605]
[1737011385765,1.53679606,3384.9,3384.8,0.59096]
[1737011386066,1.53679606,3384.9,3384.5,1.04859606]
[1737011386362,1.04859606,3384.7,3384.4,3.6875]
[1737011386666,1.04859606,3384.7,3384.5,0.59101]
[1737011386859,0.4454,3384.6,3384.5,0.59101]
[1737011387061,0.4454,3384.6,3384.5,1.63960606]
[1737011388766,0.4454,3384.6,3384.5,0.59101]
[1737011390861,0.4454,3384.6,3384.5,1.63960606]
[1737011392572,0.4454,3384.6,3384.5,0.59101]
[1737011393565,0.4882,3384.9,3384.7,0.59097]
[1737011393764,0.9557,3384.9,3384.7,0.59097]
[1737011395968,0.9557,3384.9,3384.8,0.59096]
[1737011399973,0.4882,3384.9,3384.8,0.59096]
[1737011403666,1.53679606,3384.9,3384.7,0.59096]
[1737011404667,3.2078,3386.0,3384.8,4.25639606]
[1737011404868,1.04859606,3385.9,3385.5,0.59084]
[1737011405170,1.04859606,3385.7,3385.6,0.4812]
[1737011405365,1.04859606,3385.7,3385.6,41.2812]
[1737011405569,1.04859606,3385.7,3385.6,40.8]
[1737011405768,1.04859606,3385.7,3385.4,0.4812]
[1737011405969,1.04859606,3385.5,3385.4,0.4812]
[1737011406376,1.04859606,3385.5,3385.2,45.04288]
[1737011406574,1.04859606,3385.3,3385.2,45.04288]
[1737011406871,1.04859606,3385.3,3385.2,1.03508]
[1737011416877,1.04859606,3385.3,3385.2,0.4442]
[1737011417076,1.04859606,3385.3,3384.6,4.63108286]
[1737011417278,1.163,3385.2,3384.7,3.2078]
[1737011417483,1.04859606,3385.0,3384.8,0.59095]
[1737011418180,1.04859606,3385.0,3384.9,0.59094]
[1737011418687,1.04859606,3385.2,3384.9,0.59094]
[1737011418887,2.21159606,3385.2,3384.8,1.04859606]
[1737011419177,2.21159606,3385.2,3385.1,0.59091]
[1737011419383,2.21159606,3385.2,3385.0,0.59092]
[1737011419587,2.21159606,3385.2,3385.0,1.07682]
[1737011420981,0.59092,3385.1,3384.7,3.2078]
[1737011421182,1.04859606,3384.8,3384.7,3.79878]
[1737011421589,1.53309606,3385.0,3384.8,0.59095]
[1737011421789,1.53309606,3385.0,3384.9,1.06364]
[1737011422096,1.53309606,3385.0,3384.9,0.4727]
[1737011430994,1.53309606,3385.0,3384.5,3.6937]
[1737011431190,1.04859606,3384.7,3384.5,3.6937]
[1737011432097,1.63957606,3384.7,3384.5,3.6937]
[1737011432495,1.04859606,3384.7,3384.5,3.6937]
[1737011432898,1.63958606,3384.7,3384.5,3.6937]
[1737011433793,1.04859606,3384.7,3384.5,3.6937]
[1737011437899,1.04859606,3384.7,3384.5,4.28471]
[1737011438300,1.04859606,3384.7,3384.5,1.07691]
[1737011438597,1.04859606,3384.7,3384.5,0.4859]
[1737011439800,1.63957606,3384.7,3384.5,0.4859]
[1737011441404,1.04859606,3384.7,3384.5,0.4859]
[1737011441799,1.63957606,3384.7,3384.5,0.4859]
[1737011442003,1.04859606,3384.7,3384.5,0.4859]
[1737011442201,1.04859606,3384.7,3384.5,1.07691]
[1737011442401,1.04859606,3384.7,3384.4,3.79882]
[1737011442603,0.59097,3384.8,3384.4,3.79882]
[1737011442604,1.53367,3384.8,3384.5,0.4823]
[1737011444008,1.04859606,3384.6,3384.5,0.4823]
[1737011444506,1.04859606,3384.6,3384.5,1.07331]
[1737011445506,1.04859606,3384.6,3384.5,0.4823]
[1737011446207,1.04859606,3384.6,3384.5,1.07331]
[1737011446904,3.2078,3385.2,3384.5,1.53089606]
[1737011447105,3.2078,3385.2,3385.1,0.59091]
[1737011447304,3.2078,3385.2,3385.1,41.39091]
[1737011447501,1.3932,3385.7,3385.1,41.39091]
[1737011447502,3.2078,3385.6,3385.5,0.59084]
[1737011447703,3.8415158,3386.1,3385.1,41.84859606]
[1737011447704,3.2078,3386.0,3385.3,1.04859606]
[1737011447906,4.25639606,3386.0,3385.8,0.59077]
[1737011448104,4.25639606,3386.0,3385.9,0.4423]
[1737011450809,3.2078,3386.0,3385.9,0.4423]
[1737011451105,4.25639606,3386.0,3385.9,0.4423]
[1737011452510,0.59078,3385.9,3385.4,0.59084]
[1737011452714,1.04859606,3385.6,3385.4,0.59084]
[1737011453208,1.04859606,3385.6,3385.5,0.59084]
[1737011453408,1.04859606,3385.6,3385.3,4.25639606]
[1737011453711,1.04859606,3385.6,3385.4,0.59085]
[1737011454814,1.04859606,3385.6,3385.3,3.2078]
[1737011455014,1.04859606,3385.4,3385.3,3.79867]
[1737011455216,1.04859606,3385.4,3385.3,3.2078]
[1737011458912,0.59083,3385.6,3385.3,3.2078]
[1737011459218,1.04859606,3385.4,3385.3,3.2078]
[1737011460017,1.04859606,3385.4,3385.2,0.458]
[1737011460517,1.04859606,3385.4,3385.2,0.9138]
[1737011461418,1.04859606,3385.4,3385.3,0.59087]
[1737011461711,1.04859606,3385.4,3385.2,0.9138]
[1737011461918,1.04859606,3385.4,3385.2,1.50468]
[1737011462320,1.04859606,3385.4,3385.2,0.9138]
[1737011462515,1.04859606,3385.4,3385.3,0.4501]
[1737011463218,1.04859606,3385.4,3385.2,1.50468]
[1737011467025,1.04859606,3385.4,3385.2,0.9138]
[1737011467529,1.04859606,3385.4,3385.2,1.50468]
[1737011468637,1.04859606,3385.4,3385.3,0.59087]
[1737011469731,0.4478,3385.7,3385.6,0.59082]
[1737011470133,1.49639606,3385.7,3385.2,0.9138]
[1737011470430,0.4478,3385.7,3385.5,0.59083]
[1737011470631,0.4478,3385.7,3385.4,0.59084]
[1737011470829,0.4478,3385.7,3385.5,0.59083]
[1737011471031,1.04859606,3385.6,3385.5,0.59083]
[1737011472231,1.04859606,3385.6,3385.2,0.9138]
[1737011472425,0.4478,3385.7,3385.4,0.59085]
[1737011472829,1.04859606,3385.5,3385.4,0.59085]
[1737011473233,1.04859606,3385.5,3385.2,0.9138]
[1737011473438,1.04859606,3385.3,3385.2,1.50469]
[1737011473632,1.04859606,3385.3,3385.2,0.4558]
[1737011479939,1.04859606,3385.3,3384.9,40.8]
[1737011480143,1.04859606,3385.0,3384.9,40.8]
[1737011482443,1.53059606,3385.0,3384.9,40.8]
[1737011482748,2.12152606,3385.0,3384.9,40.8]
[1737011483343,2.12152606,3385.0,3384.4,0.59103]
[1737011483344,0.59097,3384.8,3384.4,0.59103]
[1737011483547,1.04859606,3384.5,3384.4,1.04193]
[1737011483738,1.04859606,3384.5,3384.4,0.4509]
[1737011483943,1.04859606,3384.5,3384.4,41.2509]
[1737011484844,1.04859606,3384.5,3384.4,41.84193]
[1737011485047,1.04859606,3384.7,3384.4,41.2509]
[1737011485342,1.04859606,3384.7,3384.5,0.591]
[1737011488159,1.04859606,3384.7,3384.4,42.29949606]
[1737011488451,1.04859606,3384.7,3384.5,0.59101]
[1737011489654,1.04859606,3384.7,3384.6,0.591]
[1737011489848,1.04859606,3384.8,3384.4,42.29949606]
[1737011490051,1.04859606,3384.8,3384.7,0.59098]
[1737011491055,1.04859606,3384.8,3384.6,0.59099]
[1737011491553,1.04859606,3384.8,3384.5,0.591]
[1737011491754,1.04859606,3384.6,3384.5,0.591]
[1737011493448,1.04859606,3384.6,3384.4,1.04192]
[1737011494352,1.04859606,3384.6,3384.4,0.4509]
[1737011494552,1.04859606,3384.6,3384.4,1.04192]
[1737011495051,1.04859606,3384.6,3384.4,0.4509]
[1737011495258,1.04859606,3384.6,3384.4,1.04193]
[1737011496858,2.09530606,3384.6,3384.4,0.4509]
[1737011497551,0.59106,3384.3,3383.9,44.0078]
[1737011497756,0.4878,3384.2,3384.0,0.4797]
[1737011497948,0.4878,3384.2,3384.0,1.0708]
[1737011498143,0.4878,3384.2,3384.0,0.4797]
[1737011498144,1.04859606,3384.1,3384.0,0.4797]
[1737011498352,1.04859606,3384.1,3384.0,1.0708]
[1737011498749,1.04859606,3384.1,3384.0,0.4797]
[1737011499159,1.97229606,3384.1,3384.0,0.4797]
[1737011499451,2.56337606,3384.1,3384.0,0.4797]
[1737011500056,1.97229606,3384.1,3383.9,40.8]
[1737011500356,1.97229606,3384.1,3383.8,0.96]
[1737011500357,0.5911,3384.0,3383.8,0.96]
[1737011500559,1.04859606,3383.9,3383.8,0.96]
[1737011500753,1.04859606,3383.9,3383.8,42.35113]
[1737011501457,1.04859606,3383.9,3383.8,41.76]
[1737011501659,1.04859606,3383.9,3383.8,41.2797]
[1737011504964,1.04859606,3383.9,3383.8,41.87083]
[1737011517363,1.04859606,3383.9,3383.8,1.07083]
[1737011524774,1.04859606,3383.9,3383.8,0.4797]
[1737011525079,1.04859606,3383.9,3383.8,1.07083]
[1737011531880,3.2078,3384.3,3383.8,0.4797]
[1737011532085,1.04859606,3384.6,3384.1,4.25639606]
[1737011532280,1.04859606,3384.4,3384.2,0.4763]
[1737011532483,1.04859606,3384.4,3384.3,1.03655]
[1737011535383,1.04859606,3384.4,3384.2,0.4763]
[1737011535581,0.4757,3384.3,3384.2,0.4763]
[1737011537994,0.4757,3384.3,3383.8,3.2078]
[1737011538289,0.4757,3384.3,3383.5,40.8]
[1737011538290,0.4757,3384.3,3383.9,1.05022]
[1737011538491,3.6835,3384.3,3383.9,1.05022]
[1737011538688,4.8465,3384.3,3383.9,1.05022]
[1737011538885,4.8465,3384.3,3384.0,0.59109]
[1737011539693,1.04859606,3384.1,3384.0,0.59109]
[1737011540493,1.04859606,3384.1,3383.9,0.4591]
[1737011540693,1.04859606,3384.1,3383.9,1.05021]
[1737011540987,1.04859606,3384.1,3383.9,0.4591]
[1737011541187,1.04859606,3384.1,3384.0,0.5911]
[1737011545995,1.6387,3384.3,3384.2,0.59107]
[1737011547399,2.68729606,3384.3,3384.2,0.59107]
[1737011547991,0.9462,3384.7,3384.4,0.59103]
[1737011548192,1.163,3384.8,3384.7,0.59096]
[1737011548996,1.6059,3384.8,3384.7,0.59096]
[1737011550099,2.65449606,3384.8,3384.7,0.59096]
[1737011550490,1.6059,3384.8,3384.7,0.59096]
[1737011550798,1.49149606,3384.8,3384.7,0.59096]
[1737011550998,1.163,3384.9,3384.8,0.59096]
[1737011551196,2.21159606,3384.9,3384.8,0.59096]
[1737011553201,1.163,3384.9,3384.8,0.59096]
[1737011553499,1.6059,3385.1,3384.9,0.59093]
[1737011553701,1.6059,3385.1,3385.0,0.4775]
[1737011554996,2.65449606,3385.1,3385.0,0.4775]
[1737011555496,4.154,3385.3,3385.0,0.4775]
[1737011555497,3.6771,3385.3,3385.0,0.4775]
[1737011555799,1.04859606,3385.1,3385.0,1.06843]
[1737011556195,1.04859606,3385.1,3385.0,41.86843]
[1737011556392,1.04859606,3385.3,3385.2,0.59089]
[1737011558301,1.6193,3385.9,3385.5,0.59083]
[1737011558505,1.6193,3385.9,3385.6,1.03821]
[1737011559606,0.4573,3385.9,3385.7,0.5908]
[1737011560002,1.04859606,3385.8,3385.7,0.5908]
[1737011560606,4.3698,3386.0,3385.7,0.5908]
[1737011560798,1.04859606,3385.8,3385.7,0.5908]
[1737011560994,1.162,3386.0,3385.6,0.4474]
[1737011561200,1.04859606,3385.8,3385.6,1.03822]
[1737011562003,1.04859606,3385.8,3385.6,1.03821]
[1737011562807,1.04859606,3385.8,3385.7,0.5908]
[1737011565307,2.3215808,3385.9,3385.6,0.4474]
[1737011565509,0.4639,3385.8,3385.6,0.4474]
[1737011566510,0.4639,3385.8,3385.6,1.03821]
[1737011567201,0.4639,3385.8,3385.6,0.4474]
[1737011568503,1.50119,3385.8,3385.6,0.4474]
[1737011568704,1.50119,3385.8,3385.4,0.59085]
[1737011569410,0.9104,3385.8,3385.5,0.4506]
[1737011569708,0.9104,3385.8,3385.5,1.04143]
[1737011570307,1.50119,3385.8,3385.5,0.4506]
[1737011571099,1.50119,3385.8,3385.5,1.04144]
[1737011571610,0.9104,3385.8,3385.5,1.04144]
[1737011572116,0.9104,3385.8,3385.5,0.4506]
[1737011572804,0.9104,3385.8,3385.7,0.5908]
[1737011573605,0.9104,3385.8,3385.6,0.59082]
[1737011575510,0.9104,3385.8,3385.7,0.5908]
[1737011575918,0.9104,3385.8,3385.6,0.59081]
[1737011576913,0.9104,3385.8,3385.7,0.5908]
[1737011577115,3.2319808,3385.8,3385.7,0.5908]
[1737011580120,2.7854808,3385.8,3385.7,0.5908]
[1737011580321,2.3215808,3385.8,3385.7,0.5908]
[1737011582717,2.3215808,3386.1,3385.5,1.409]
[1737011583017,2.3215808,3386.1,3386.0,0.59075]
[1737011584818,3.2078,3386.2,3386.1,0.59073]
[1737011585319,4.25512163,3386.2,3386.1,0.59073]
[1737011585726,0.28472874,3386.5,3385.6,2.52438163]
[1737011585727,1.04732163,3386.4,3386.0,1.04732163]
[1737011585911,1.04732163,3386.4,3386.3,0.5907]
[1737011590427,2.08252163,3386.9,3386.7,0.59063]